[Event "Titled Tuesday Blitz July 25 Early 2023"]
[White "Vafin, Ayrat"]
[Black "Pakleza, Zbigniew"]
[WhiteFideId "4146530"]
[BlackFideId "1119290"]
[WhiteElo "2414"]
[BlackElo "2770"]
[Result "0-1"]
[Round "1"]
[TimeControl "180+2"]
[Date "2023.07.25"]
[WhiteClock "0:00:05"]
[BlackClock "0:01:11"]
[Board "89"]

1. d4 {[%clk 0:03:00]}  d6 {[%clk 0:03:00]} 2. Bf4 {[%clk 0:02:59]}  Nc6 {[%clk 0:02:53]} 3. e3 {[%clk 0:02:58]}  e5 {[%clk 0:02:52]} 4. dxe5 {[%clk 0:02:54]}  dxe5 {[%clk 0:02:53]} 5. Qxd8+ {[%clk 0:02:54]}  Kxd8 {[%clk 0:02:54]} 6. Bg3 {[%clk 0:02:53]}  Be6 {[%clk 0:02:52]} 7. Nc3 {[%clk 0:02:51]}  a6 {[%clk 0:02:49]} 8. Nf3 {[%clk 0:02:50]}  f6 {[%clk 0:02:49]} 9. Be2 {[%clk 0:02:45]}  Nge7 {[%clk 0:02:38]} 10. Rd1+ {[%clk 0:02:42]}  Kc8 {[%clk 0:02:32]} 11. h3 {[%clk 0:02:39]}  Nf5 {[%clk 0:02:23]} 12. Bh2 {[%clk 0:02:32]}  Bb4 {[%clk 0:02:22]} 13. a3 {[%clk 0:01:46]}  Bxc3+ {[%clk 0:02:21]} 14. bxc3 {[%clk 0:01:47]}  Nd6 {[%clk 0:02:12]} 15. O-O {[%clk 0:01:38]}  Nb5 {[%clk 0:02:02]} 16. Bxb5 {[%clk 0:01:18]}  axb5 {[%clk 0:02:03]} 17. Ra1 {[%clk 0:01:14]}  Rd8 {[%clk 0:01:58]} 18. Rfe1 {[%clk 0:00:39]}  Ra4 {[%clk 0:01:45]} 19. Kf1 {[%clk 0:00:30]}  Rc4 {[%clk 0:01:31]} 20. Ke2 {[%clk 0:00:17]}  Rxc3 {[%clk 0:01:29]} 21. Red1 {[%clk 0:00:16]}  Rxc2+ {[%clk 0:01:18]} 22. Ke1 {[%clk 0:00:13]}  Rxd1+ {[%clk 0:01:15]} 23. Kxd1 {[%clk 0:00:12]}  Rxf2 {[%clk 0:01:13]} 24. Nh4 {[%clk 0:00:05]}  Rf1+ {[%clk 0:01:11]} 0-1


[Site "https://www.chess.com"]

[Event "Titled Tuesday Blitz July 25 Early 2023"]
[White "Vakhlamov, Igor L."]
[Black "Yashmetov, Mikhail"]
[WhiteFideId "24126748"]
[BlackFideId "24198900"]
[WhiteElo "2770"]
[BlackElo "2414"]
[Result "1-0"]
[Round "1"]
[TimeControl "180+2"]
[Date "2023.07.25"]
[WhiteClock "0:00:18"]
[BlackClock "0:00:14"]
[Board "90"]

1. e4 {[%clk 0:02:25]}  c5 {[%clk 0:02:58]} 2. Nf3 {[%clk 0:02:24]}  Nc6 {[%clk 0:02:58]} 3. Nc3 {[%clk 0:02:23]}  e5 {[%clk 0:02:58]} 4. Bc4 {[%clk 0:02:21]}  d6 {[%clk 0:02:58]} 5. d3 {[%clk 0:02:22]}  Be7 {[%clk 0:02:58]} 6. h3 {[%clk 0:02:22]}  Nf6 {[%clk 0:02:58]} 7. Nh2 {[%clk 0:02:22]}  O-O {[%clk 0:02:57]} 8. Ng4 {[%clk 0:02:23]}  Be6 {[%clk 0:02:44]} 9. Ne3 {[%clk 0:02:22]}  Nd4 {[%clk 0:02:44]} 10. O-O {[%clk 0:02:20]}  Rb8 {[%clk 0:02:43]} 11. a4 {[%clk 0:02:20]}  a6 {[%clk 0:02:39]} 12. Ncd5 {[%clk 0:02:00]}  b5 {[%clk 0:02:36]} 13. Nxf6+ {[%clk 0:02:00]}  Bxf6 {[%clk 0:02:36]} 14. Bd5 {[%clk 0:02:00]}  b4 {[%clk 0:02:27]} 15. c3 {[%clk 0:01:56]}  bxc3 {[%clk 0:02:28]} 16. bxc3 {[%clk 0:01:56]}  Nb3 {[%clk 0:02:27]} 17. Rb1 {[%clk 0:01:53]}  Nxc1 {[%clk 0:02:27]} 18. Qxc1 {[%clk 0:01:50]}  Bg5 {[%clk 0:02:27]} 19. Bxe6 {[%clk 0:01:37]}  fxe6 {[%clk 0:02:25]} 20. Qc2 {[%clk 0:01:32]}  Bxe3 {[%clk 0:02:13]} 21. fxe3 {[%clk 0:01:33]}  Qg5 {[%clk 0:01:55]} 22. Qe2 {[%clk 0:01:27]}  Rxf1+ {[%clk 0:01:30]} 23. Rxf1 {[%clk 0:01:26]}  h6 {[%clk 0:01:15]} 24. Qf2 {[%clk 0:01:20]}  Qg6 {[%clk 0:01:12]} 25. a5 {[%clk 0:01:09]}  Kh7 {[%clk 0:01:03]} 26. Qa2 {[%clk 0:00:33]}  Qg5 {[%clk 0:00:57]} 27. Rf3 {[%clk 0:00:32]}  Qe7 {[%clk 0:00:52]} 28. Kh2 {[%clk 0:00:28]}  Kg8 {[%clk 0:00:38]} 29. Rf2 {[%clk 0:00:26]}  Rf8 {[%clk 0:00:34]} 30. Rxf8+ {[%clk 0:00:25]}  Kxf8 {[%clk 0:00:35]} 31. Qc4 {[%clk 0:00:24]}  Qg5 {[%clk 0:00:31]} 32. Qxa6 {[%clk 0:00:22]}  Qxe3 {[%clk 0:00:30]} 33. Qxd6+ {[%clk 0:00:22]}  Kf7 {[%clk 0:00:31]} 34. Qxe5 {[%clk 0:00:20]}  Qxd3 {[%clk 0:00:31]} 35. Qxc5 {[%clk 0:00:17]}  Qxe4 {[%clk 0:00:30]} 36. Qc7+ {[%clk 0:00:18]}  Kg6 {[%clk 0:00:29]} 37. a6 {[%clk 0:00:19]}  e5 {[%clk 0:00:23]} 38. Qb6+ {[%clk 0:00:19]}  Kh7 {[%clk 0:00:23]} 39. Qf2 {[%clk 0:00:19]}  Qa4 {[%clk 0:00:17]} 40. a7 {[%clk 0:00:19]}  Kg6 {[%clk 0:00:14]} 41. Qg3+ {[%clk 0:00:18]}  Kf6 {[%clk 0:00:14]} 42. Qf3+ {[%clk 0:00:18]} 1-0


[Site "https://www.chess.com"]

[Event "Titled Tuesday Blitz July 25 Early 2023"]
[White "Dinu, Dumitru-Daniel"]
[Black "Prohaszka, Peter"]
[WhiteFideId "1208403"]
[BlackFideId "726265"]
[WhiteElo "2414"]
[BlackElo "2766"]
[Result "1-0"]
[Round "1"]
[TimeControl "180+2"]
[Date "2023.07.25"]
[WhiteClock "0:00:11"]
[BlackClock "0:00:02"]
[Board "91"]

1. d4 {[%clk 0:02:59]}  d5 {[%clk 0:02:21]} 2. c4 {[%clk 0:02:58]}  e6 {[%clk 0:02:19]} 3. Nc3 {[%clk 0:02:58]}  Nf6 {[%clk 0:02:06]} 4. cxd5 {[%clk 0:02:57]}  exd5 {[%clk 0:01:56]} 5. Bg5 {[%clk 0:02:56]}  c6 {[%clk 0:01:54]} 6. e3 {[%clk 0:02:54]}  Bf5 {[%clk 0:01:49]} 7. Qf3 {[%clk 0:02:34]}  Bg6 {[%clk 0:01:11]} 8. Bxf6 {[%clk 0:02:33]}  Qxf6 {[%clk 0:01:12]} 9. Qxf6 {[%clk 0:02:32]}  gxf6 {[%clk 0:01:13]} 10. h4 {[%clk 0:02:17]}  h5 {[%clk 0:01:10]} 11. Nh3 {[%clk 0:02:13]}  Nd7 {[%clk 0:01:03]} 12. Nf4 {[%clk 0:01:54]}  a5 {[%clk 0:01:03]} 13. Bd3 {[%clk 0:01:47]}  Bxd3 {[%clk 0:00:58]} 14. Nxd3 {[%clk 0:01:48]}  a4 {[%clk 0:00:57]} 15. Rh3 {[%clk 0:01:34]}  Bd6 {[%clk 0:00:56]} 16. Rf3 {[%clk 0:01:31]}  Ke7 {[%clk 0:00:50]} 17. Kd2 {[%clk 0:01:19]}  Rhg8 {[%clk 0:00:49]} 18. g3 {[%clk 0:01:18]}  Nb6 {[%clk 0:00:40]} 19. Kc2 {[%clk 0:01:02]}  Nc4 {[%clk 0:00:33]} 20. Re1 {[%clk 0:00:59]}  Rg6 {[%clk 0:00:20]} 21. Rf5 {[%clk 0:00:50]}  Rh6 {[%clk 0:00:15]} 22. e4 {[%clk 0:00:47]}  Kf8 {[%clk 0:00:15]} 23. exd5 {[%clk 0:00:44]}  cxd5 {[%clk 0:00:15]} 24. Nxd5 {[%clk 0:00:36]}  Rc8 {[%clk 0:00:12]} 25. Kd1 {[%clk 0:00:30]}  Kg7 {[%clk 0:00:12]} 26. N3f4 {[%clk 0:00:26]}  Nxb2+ {[%clk 0:00:09]} 27. Ke2 {[%clk 0:00:22]}  Bxf4 {[%clk 0:00:03]} 28. Nxf4 {[%clk 0:00:21]}  Rc2+ {[%clk 0:00:03]} 29. Kf1 {[%clk 0:00:16]}  Kh7 {[%clk 0:00:03]} 30. Re7 {[%clk 0:00:15]}  Kg8 {[%clk 0:00:01]} 31. Nxh5 {[%clk 0:00:13]}  Nd3 {[%clk 0:00:02]} 32. Nxf6+ {[%clk 0:00:10]}  Kf8 {[%clk 0:00:02]} 33. Re8+ {[%clk 0:00:10]}  Kg7 {[%clk 0:00:02]} 34. Rg8# {[%clk 0:00:11]} 1-0


[Site "https://www.chess.com"]

[Event "Titled Tuesday Blitz July 25 Early 2023"]
[White "Rozman, Levy"]
[Black "Gracia Alvarez, Gerardo Antonio"]
[WhiteFideId "2039877"]
[BlackFideId "5109124"]
[WhiteElo "2763"]
[BlackElo "2411"]
[Result "1-0"]
[Round "1"]
[TimeControl "180+2"]
[Date "2023.07.25"]
[WhiteClock "0:00:04"]
[BlackClock "0:00:08"]
[Board "92"]

1. e4 {[%clk 0:02:59]}  c5 {[%clk 0:02:59]} 2. Nc3 {[%clk 0:02:59]}  Nc6 {[%clk 0:02:58]} 3. Bb5 {[%clk 0:02:58]}  Nd4 {[%clk 0:02:52]} 4. Nf3 {[%clk 0:02:57]}  e6 {[%clk 0:02:48]} 5. O-O {[%clk 0:02:56]}  a6 {[%clk 0:02:45]} 6. Bd3 {[%clk 0:02:55]}  Nc6 {[%clk 0:02:39]} 7. Nd5 {[%clk 0:02:52]}  Nge7 {[%clk 0:02:32]} 8. Re1 {[%clk 0:02:36]}  d6 {[%clk 0:02:27]} 9. Ne3 {[%clk 0:02:27]}  Ng6 {[%clk 0:02:26]} 10. c3 {[%clk 0:02:26]}  Be7 {[%clk 0:02:26]} 11. Bc2 {[%clk 0:02:26]}  e5 {[%clk 0:02:15]} 12. d4 {[%clk 0:02:24]}  cxd4 {[%clk 0:02:15]} 13. cxd4 {[%clk 0:02:24]}  O-O {[%clk 0:02:13]} 14. d5 {[%clk 0:02:09]}  Nd4 {[%clk 0:02:12]} 15. Nxd4 {[%clk 0:02:06]}  exd4 {[%clk 0:02:13]} 16. Nf5 {[%clk 0:01:55]}  Bxf5 {[%clk 0:02:08]} 17. exf5 {[%clk 0:01:55]}  Ne5 {[%clk 0:02:08]} 18. Qxd4 {[%clk 0:01:52]}  Bf6 {[%clk 0:02:09]} 19. Qe4 {[%clk 0:01:20]}  Qb6 {[%clk 0:01:53]} 20. Qe3 {[%clk 0:01:04]}  Qb5 {[%clk 0:01:47]} 21. Qb3 {[%clk 0:01:01]}  Rfc8 {[%clk 0:01:39]} 22. Bf4 {[%clk 0:00:52]}  Qxb3 {[%clk 0:01:32]} 23. Bxb3 {[%clk 0:00:53]}  Nd3 {[%clk 0:01:32]} 24. Re4 {[%clk 0:00:46]}  Bxb2 {[%clk 0:01:27]} 25. Rd1 {[%clk 0:00:44]}  Nxf4 {[%clk 0:01:26]} 26. Rxf4 {[%clk 0:00:44]}  b5 {[%clk 0:01:04]} 27. h4 {[%clk 0:00:40]}  a5 {[%clk 0:00:57]} 28. Rb1 {[%clk 0:00:35]}  Be5 {[%clk 0:00:51]} 29. Re4 {[%clk 0:00:35]}  Rc5 {[%clk 0:00:43]} 30. a4 {[%clk 0:00:24]}  b4 {[%clk 0:00:36]} 31. g3 {[%clk 0:00:21]}  Rac8 {[%clk 0:00:28]} 32. Rbe1 {[%clk 0:00:21]}  Rc3 {[%clk 0:00:24]} 33. R1e3 {[%clk 0:00:19]}  h6 {[%clk 0:00:22]} 34. Kg2 {[%clk 0:00:19]}  Rxe3 {[%clk 0:00:18]} 35. Rxe3 {[%clk 0:00:19]}  Kf8 {[%clk 0:00:18]} 36. f4 {[%clk 0:00:19]}  Bf6 {[%clk 0:00:18]} 37. Kf3 {[%clk 0:00:19]}  Rc3 {[%clk 0:00:17]} 38. Ke4 {[%clk 0:00:17]}  Rxe3+ {[%clk 0:00:17]} 39. Kxe3 {[%clk 0:00:17]}  Ke7 {[%clk 0:00:16]} 40. Kf3 {[%clk 0:00:17]}  Kd7 {[%clk 0:00:15]} 41. Ke4 {[%clk 0:00:17]}  Kc7 {[%clk 0:00:15]} 42. Kd3 {[%clk 0:00:18]}  Kb6 {[%clk 0:00:16]} 43. Kc4 {[%clk 0:00:18]}  h5 {[%clk 0:00:12]} 44. Bd1 {[%clk 0:00:17]}  g6 {[%clk 0:00:12]} 45. fxg6 {[%clk 0:00:18]}  fxg6 {[%clk 0:00:12]} 46. Bc2 {[%clk 0:00:19]}  Bc3 {[%clk 0:00:09]} 47. Bxg6 {[%clk 0:00:14]}  Be1 {[%clk 0:00:10]} 48. f5 {[%clk 0:00:13]}  Bxg3 {[%clk 0:00:09]} 49. f6 {[%clk 0:00:13]}  Bxh4 {[%clk 0:00:10]} 50. f7 {[%clk 0:00:14]}  Be7 {[%clk 0:00:10]} 51. Bxh5 {[%clk 0:00:14]}  Bf8 {[%clk 0:00:10]} 52. Bd1 {[%clk 0:00:14]}  Bg7 {[%clk 0:00:08]} 53. Bc2 {[%clk 0:00:14]}  Bf8 {[%clk 0:00:08]} 54. Kd4 {[%clk 0:00:14]}  Bg7+ {[%clk 0:00:06]} 55. Ke4 {[%clk 0:00:14]}  Kc5 {[%clk 0:00:05]} 56. Bb3 {[%clk 0:00:15]}  Bf8 {[%clk 0:00:04]} 57. Ba2 {[%clk 0:00:08]}  Bg7 {[%clk 0:00:04]} 58. Kf5 {[%clk 0:00:08]}  Kd4 {[%clk 0:00:04]} 59. Kg6 {[%clk 0:00:07]}  Bf8 {[%clk 0:00:04]} 60. Kh7 {[%clk 0:00:08]}  Kc3 {[%clk 0:00:02]} 61. Kg8 {[%clk 0:00:08]}  Bh6 {[%clk 0:00:03]} 62. f8=Q {[%clk 0:00:06]}  Bxf8 {[%clk 0:00:03]} 63. Kxf8 {[%clk 0:00:07]}  b3 {[%clk 0:00:03]} 64. Bxb3 {[%clk 0:00:07]}  Kxb3 {[%clk 0:00:04]} 65. Ke7 {[%clk 0:00:07]}  Kxa4 {[%clk 0:00:04]} 66. Kxd6 {[%clk 0:00:08]}  Kb4 {[%clk 0:00:05]} 67. Kc6 {[%clk 0:00:02]}  a4 {[%clk 0:00:06]} 68. d6 {[%clk 0:00:03]}  a3 {[%clk 0:00:07]} 69. d7 {[%clk 0:00:03]}  a2 {[%clk 0:00:07]} 70. d8=Q {[%clk 0:00:04]}  a1=Q {[%clk 0:00:08]} 71. Qd4+ {[%clk 0:00:04]}  Kb3 {[%clk 0:00:08]} 72. Qxa1 {[%clk 0:00:04]} 1-0


[Site "https://www.chess.com"]

[Event "Titled Tuesday Blitz July 25 Early 2023"]
[White "Krzywda, Andrzej"]
[Black "Khripachenko, Alexander"]
[WhiteFideId "1114565"]
[BlackFideId "54184975"]
[WhiteElo "2411"]
[BlackElo "2762"]
[Result "0-1"]
[Round "1"]
[TimeControl "180+2"]
[Date "2023.07.25"]
[WhiteClock "0:00:01"]
[BlackClock "0:00:39"]
[Board "93"]

1. e4 {[%clk 0:03:00]}  c5 {[%clk 0:02:56]} 2. Nf3 {[%clk 0:03:01]}  e6 {[%clk 0:02:54]} 3. d4 {[%clk 0:03:01]}  cxd4 {[%clk 0:02:55]} 4. Nxd4 {[%clk 0:03:02]}  Nc6 {[%clk 0:02:55]} 5. Bf4 {[%clk 0:03:01]}  Nf6 {[%clk 0:02:49]} 6. Nxc6 {[%clk 0:02:51]}  bxc6 {[%clk 0:02:48]} 7. Bd3 {[%clk 0:02:51]}  d5 {[%clk 0:02:48]} 8. Nd2 {[%clk 0:02:52]}  Be7 {[%clk 0:02:45]} 9. O-O {[%clk 0:02:50]}  O-O {[%clk 0:02:45]} 10. Re1 {[%clk 0:02:47]}  a5 {[%clk 0:02:41]} 11. e5 {[%clk 0:02:47]}  Nd7 {[%clk 0:02:41]} 12. Qh5 {[%clk 0:02:47]}  g6 {[%clk 0:02:31]} 13. Qe2 {[%clk 0:02:47]}  Nc5 {[%clk 0:02:30]} 14. Nf3 {[%clk 0:02:47]}  Nxd3 {[%clk 0:02:28]} 15. cxd3 {[%clk 0:02:45]}  c5 {[%clk 0:02:29]} 16. h4 {[%clk 0:02:20]}  Ba6 {[%clk 0:02:26]} 17. h5 {[%clk 0:02:05]}  Rb8 {[%clk 0:02:26]} 18. b3 {[%clk 0:02:01]}  a4 {[%clk 0:02:25]} 19. Bh6 {[%clk 0:01:58]}  Re8 {[%clk 0:02:24]} 20. Rab1 {[%clk 0:01:54]}  axb3 {[%clk 0:02:25]} 21. axb3 {[%clk 0:01:54]}  Qa5 {[%clk 0:02:20]} 22. Ng5 {[%clk 0:01:38]}  Qc7 {[%clk 0:01:31]} 23. Qf3 {[%clk 0:01:29]}  Bd8 {[%clk 0:01:31]} 24. hxg6 {[%clk 0:01:11]}  fxg6 {[%clk 0:01:28]} 25. Rbc1 {[%clk 0:01:03]}  Bxg5 {[%clk 0:01:23]} 26. Bxg5 {[%clk 0:01:02]}  Rxb3 {[%clk 0:01:24]} 27. Re3 {[%clk 0:00:39]}  d4 {[%clk 0:01:21]} 28. Re4 {[%clk 0:00:34]}  Bxd3 {[%clk 0:01:21]} 29. Rf4 {[%clk 0:00:28]}  Bc4 {[%clk 0:01:09]} 30. Qe4 {[%clk 0:00:18]}  Bd5 {[%clk 0:01:08]} 31. Qxd4 {[%clk 0:00:15]}  Rb1 {[%clk 0:00:54]} 32. Qd1 {[%clk 0:00:11]}  Rxc1 {[%clk 0:00:53]} 33. Qxc1 {[%clk 0:00:12]}  Qxe5 {[%clk 0:00:53]} 34. Bf6 {[%clk 0:00:07]}  Qd6 {[%clk 0:00:46]} 35. Qe3 {[%clk 0:00:06]}  e5 {[%clk 0:00:44]} 36. Rf3 {[%clk 0:00:02]}  Bxf3 {[%clk 0:00:44]} 37. Qxf3 {[%clk 0:00:02]}  c4 {[%clk 0:00:41]} 38. Bg5 {[%clk 0:00:01]}  Rf8 {[%clk 0:00:39]} 0-1


[Site "https://www.chess.com"]

[Event "Titled Tuesday Blitz July 25 Early 2023"]
[White "Jumanov, Elbek"]
[Black "Dvirnyy, Danyyil"]
[WhiteFideId "14202905"]
[BlackFideId "817570"]
[WhiteElo "2405"]
[BlackElo "2749"]
[Result "0-1"]
[Round "1"]
[TimeControl "180+2"]
[Date "2023.07.25"]
[WhiteClock "0:00:14"]
[BlackClock "0:00:36"]
[Board "99"]

1. c4 {[%clk 0:02:58]}  g6 {[%clk 0:02:58]} 2. Nf3 {[%clk 0:02:58]}  Bg7 {[%clk 0:02:59]} 3. Nc3 {[%clk 0:02:58]}  d6 {[%clk 0:02:57]} 4. g3 {[%clk 0:02:58]}  Nc6 {[%clk 0:02:57]} 5. Bg2 {[%clk 0:02:58]}  e5 {[%clk 0:02:57]} 6. O-O {[%clk 0:02:58]}  Nf6 {[%clk 0:02:55]} 7. Rb1 {[%clk 0:02:58]}  a5 {[%clk 0:02:55]} 8. d3 {[%clk 0:02:58]}  O-O {[%clk 0:02:55]} 9. a3 {[%clk 0:02:58]}  h6 {[%clk 0:02:48]} 10. b4 {[%clk 0:02:57]}  axb4 {[%clk 0:02:49]} 11. axb4 {[%clk 0:02:58]}  Nd4 {[%clk 0:02:49]} 12. b5 {[%clk 0:02:56]}  Bg4 {[%clk 0:02:34]} 13. Nxd4 {[%clk 0:02:48]}  exd4 {[%clk 0:02:34]} 14. Nd5 {[%clk 0:02:43]}  Nxd5 {[%clk 0:02:34]} 15. Bxd5 {[%clk 0:02:43]}  Qc8 {[%clk 0:02:33]} 16. Re1 {[%clk 0:02:42]}  c6 {[%clk 0:02:31]} 17. bxc6 {[%clk 0:02:42]}  bxc6 {[%clk 0:02:31]} 18. Bg2 {[%clk 0:02:35]}  Re8 {[%clk 0:02:28]} 19. Qc2 {[%clk 0:02:34]}  Qd7 {[%clk 0:01:52]} 20. Rb6 {[%clk 0:02:29]}  d5 {[%clk 0:01:49]} 21. cxd5 {[%clk 0:02:27]}  cxd5 {[%clk 0:01:50]} 22. Bf4 {[%clk 0:01:59]}  Rac8 {[%clk 0:01:49]} 23. Qd2 {[%clk 0:01:56]}  g5 {[%clk 0:01:49]} 24. Bd6 {[%clk 0:01:50]}  Re6 {[%clk 0:01:37]} 25. Qb4 {[%clk 0:01:37]}  Rxe2 {[%clk 0:00:51]} 26. Rf1 {[%clk 0:01:15]}  Be6 {[%clk 0:00:45]} 27. Rb8 {[%clk 0:00:58]}  Rxb8 {[%clk 0:00:43]} 28. Qxb8+ {[%clk 0:00:57]}  Kh7 {[%clk 0:00:44]} 29. Rb1 {[%clk 0:00:50]}  Bh3 {[%clk 0:00:38]} 30. Bxd5 {[%clk 0:00:47]}  Qf5 {[%clk 0:00:38]} 31. Be4 {[%clk 0:00:14]}  Rxe4 {[%clk 0:00:38]} 32. dxe4 {[%clk 0:00:14]}  Qf3 {[%clk 0:00:36]} 0-1


[Site "https://www.chess.com"]

[Event "Titled Tuesday Blitz July 25 Early 2023"]
[White "Matinian, Nikita"]
[Black "ZugZwang1201"]
[WhiteFideId "24129100"]
[WhiteElo "2747"]
[BlackElo "2405"]
[Result "0-1"]
[Round "1"]
[TimeControl "180+2"]
[Date "2023.07.25"]
[WhiteClock "0:00:01"]
[BlackClock "0:00:04"]
[Board "100"]

1. e4 {[%clk 0:02:59]}  c5 {[%clk 0:02:59]} 2. Nf3 {[%clk 0:02:59]}  e6 {[%clk 0:03:00]} 3. d4 {[%clk 0:02:59]}  cxd4 {[%clk 0:03:00]} 4. Nxd4 {[%clk 0:03:00]}  a6 {[%clk 0:03:00]} 5. Nc3 {[%clk 0:03:00]}  Qc7 {[%clk 0:03:01]} 6. Be3 {[%clk 0:02:54]}  Nf6 {[%clk 0:03:00]} 7. f3 {[%clk 0:02:32]}  b5 {[%clk 0:03:00]} 8. Qd2 {[%clk 0:02:30]}  Bb7 {[%clk 0:03:00]} 9. O-O-O {[%clk 0:02:30]}  Bb4 {[%clk 0:02:51]} 10. a3 {[%clk 0:02:26]}  Bxc3 {[%clk 0:02:48]} 11. Qxc3 {[%clk 0:02:26]}  Qxc3 {[%clk 0:02:48]} 12. bxc3 {[%clk 0:02:27]}  d5 {[%clk 0:02:49]} 13. e5 {[%clk 0:02:13]}  Nfd7 {[%clk 0:02:49]} 14. f4 {[%clk 0:02:14]}  Nc6 {[%clk 0:02:45]} 15. Nb3 {[%clk 0:02:14]}  O-O-O {[%clk 0:02:41]} 16. h4 {[%clk 0:02:11]}  h5 {[%clk 0:02:39]} 17. Rh3 {[%clk 0:02:11]}  g6 {[%clk 0:02:39]} 18. Kb2 {[%clk 0:02:08]}  Kc7 {[%clk 0:02:39]} 19. Ra1 {[%clk 0:01:58]}  Nb6 {[%clk 0:02:39]} 20. Bxb6+ {[%clk 0:01:59]}  Kxb6 {[%clk 0:02:40]} 21. a4 {[%clk 0:01:59]}  Ra8 {[%clk 0:02:19]} 22. a5+ {[%clk 0:01:45]}  Kc7 {[%clk 0:02:18]} 23. Be2 {[%clk 0:01:43]}  Rac8 {[%clk 0:02:10]} 24. g4 {[%clk 0:01:31]}  hxg4 {[%clk 0:02:10]} 25. Bxg4 {[%clk 0:01:32]}  Rh6 {[%clk 0:02:08]} 26. Rah1 {[%clk 0:01:32]}  Rch8 {[%clk 0:02:08]} 27. h5 {[%clk 0:01:29]}  gxh5 {[%clk 0:02:09]} 28. Rxh5 {[%clk 0:01:29]}  Rxh5 {[%clk 0:02:07]} 29. Rxh5 {[%clk 0:01:30]}  Rg8 {[%clk 0:01:53]} 30. Bh3 {[%clk 0:01:18]}  Bc8 {[%clk 0:01:45]} 31. Rh7 {[%clk 0:01:18]}  Rf8 {[%clk 0:01:38]} 32. Kc1 {[%clk 0:01:12]}  Kd8 {[%clk 0:01:39]} 33. Kd2 {[%clk 0:01:10]}  Ke8 {[%clk 0:01:38]} 34. Ke3 {[%clk 0:01:10]}  Rg8 {[%clk 0:01:37]} 35. Kf2 {[%clk 0:01:07]}  Kf8 {[%clk 0:01:37]} 36. Rh4 {[%clk 0:00:42]}  Ke7 {[%clk 0:01:33]} 37. Rh6 {[%clk 0:00:40]}  Rd8 {[%clk 0:01:21]} 38. Bg4 {[%clk 0:00:31]}  Rg8 {[%clk 0:01:17]} 39. Bh5 {[%clk 0:00:30]}  Rg7 {[%clk 0:01:15]} 40. f5 {[%clk 0:00:24]}  Rg5 {[%clk 0:01:11]} 41. f6+ {[%clk 0:00:20]}  Kd8 {[%clk 0:01:03]} 42. Rh8+ {[%clk 0:00:19]}  Kc7 {[%clk 0:01:03]} 43. Bxf7 {[%clk 0:00:11]}  Nxe5 {[%clk 0:01:02]} 44. Rxc8+ {[%clk 0:00:10]}  Kxc8 {[%clk 0:01:02]} 45. Bxe6+ {[%clk 0:00:11]}  Kc7 {[%clk 0:01:02]} 46. Nd4 {[%clk 0:00:11]}  Kd6 {[%clk 0:00:58]} 47. f7 {[%clk 0:00:10]}  Ng6 {[%clk 0:00:55]} 48. Ke3 {[%clk 0:00:09]}  Re5+ {[%clk 0:00:53]} 49. Kd3 {[%clk 0:00:07]}  Rxe6 {[%clk 0:00:53]} 50. Nxe6 {[%clk 0:00:07]}  Kxe6 {[%clk 0:00:53]} 51. Kd4 {[%clk 0:00:08]}  Kd6 {[%clk 0:00:54]} 52. Ke3 {[%clk 0:00:07]}  Ke5 {[%clk 0:00:54]} 53. Kd3 {[%clk 0:00:07]}  Nf8 {[%clk 0:00:54]} 54. Ke3 {[%clk 0:00:07]}  Ne6 {[%clk 0:00:51]} 55. Kd3 {[%clk 0:00:06]}  Kf6 {[%clk 0:00:43]} 56. f8=Q+ {[%clk 0:00:06]}  Nxf8 {[%clk 0:00:43]} 57. Kd4 {[%clk 0:00:07]}  Ke6 {[%clk 0:00:43]} 58. Kc5 {[%clk 0:00:07]}  Nd7+ {[%clk 0:00:24]} 59. Kc6 {[%clk 0:00:07]}  Nf6 {[%clk 0:00:10]} 60. Kb6 {[%clk 0:00:07]}  Kd6 {[%clk 0:00:08]} 61. Kxa6 {[%clk 0:00:07]}  Kc6 {[%clk 0:00:09]} 62. Ka7 {[%clk 0:00:08]}  Ne4 {[%clk 0:00:07]} 63. a6 {[%clk 0:00:09]}  Nxc3 {[%clk 0:00:07]} 64. Kb8 {[%clk 0:00:09]}  Na4 {[%clk 0:00:03]} 65. a7 {[%clk 0:00:07]}  Nb6 {[%clk 0:00:04]} 66. c3 {[%clk 0:00:08]}  b4 {[%clk 0:00:03]} 67. cxb4 {[%clk 0:00:07]}  d4 {[%clk 0:00:03]} 68. b5+ {[%clk 0:00:01]}  Kxb5 {[%clk 0:00:04]} 69. Kc7 {[%clk 0:00:01]}  d3 {[%clk 0:00:04]} 70. Kb7 {[%clk 0:00:02]}  d2 {[%clk 0:00:04]} 71. a8=Q {[%clk 0:00:03]}  Nxa8 {[%clk 0:00:04]} 72. Kxa8 {[%clk 0:00:03]}  d1=Q {[%clk 0:00:04]} 73. Kb7 {[%clk 0:00:04]}  Qd7+ {[%clk 0:00:04]} 74. Kb8 {[%clk 0:00:04]}  Kb6 {[%clk 0:00:04]} 75. Ka8 {[%clk 0:00:01]}  Qc8# {[%clk 0:00:04]} 0-1


[Site "https://www.chess.com"]

[Event "Titled Tuesday Blitz July 25 Early 2023"]
[White "Xie, Bryan"]
[Black "Djordjevic, Vuk"]
[WhiteFideId "30941296"]
[BlackFideId "902098"]
[WhiteElo "2404"]
[BlackElo "2747"]
[Result "0-1"]
[Round "1"]
[TimeControl "180+2"]
[Date "2023.07.25"]
[WhiteClock "0:00:03"]
[BlackClock "0:00:35"]
[Board "101"]

1. e4 {[%clk 0:02:49]}  e6 {[%clk 0:02:57]} 2. d4 {[%clk 0:02:49]}  d5 {[%clk 0:02:57]} 3. e5 {[%clk 0:02:49]}  c5 {[%clk 0:02:56]} 4. c3 {[%clk 0:02:48]}  Nc6 {[%clk 0:02:57]} 5. Nf3 {[%clk 0:02:48]}  Qb6 {[%clk 0:02:56]} 6. a3 {[%clk 0:02:48]}  Bd7 {[%clk 0:02:55]} 7. b4 {[%clk 0:02:47]}  cxd4 {[%clk 0:02:54]} 8. cxd4 {[%clk 0:02:47]}  a5 {[%clk 0:02:55]} 9. b5 {[%clk 0:02:44]}  Na7 {[%clk 0:02:55]} 10. a4 {[%clk 0:02:44]}  Ne7 {[%clk 0:02:56]} 11. Ba3 {[%clk 0:02:41]}  Rc8 {[%clk 0:02:53]} 12. Bc5 {[%clk 0:02:39]}  Qd8 {[%clk 0:02:50]} 13. Bxa7 {[%clk 0:02:38]}  b6 {[%clk 0:02:51]} 14. Nbd2 {[%clk 0:02:18]}  Ra8 {[%clk 0:02:50]} 15. Bxb6 {[%clk 0:02:18]}  Qxb6 {[%clk 0:02:51]} 16. Nb3 {[%clk 0:02:18]}  Nf5 {[%clk 0:02:48]} 17. Bd3 {[%clk 0:02:03]}  Bb4+ {[%clk 0:02:35]} 18. Kf1 {[%clk 0:02:03]}  O-O {[%clk 0:02:35]} 19. g4 {[%clk 0:01:44]}  Ne7 {[%clk 0:02:28]} 20. Kg2 {[%clk 0:01:41]}  f5 {[%clk 0:02:23]} 21. exf6 {[%clk 0:01:39]}  Rxf6 {[%clk 0:02:22]} 22. Ne5 {[%clk 0:01:36]}  Be8 {[%clk 0:02:21]} 23. Rc1 {[%clk 0:01:13]}  Rf4 {[%clk 0:01:16]} 24. Kg3 {[%clk 0:01:06]}  g5 {[%clk 0:00:59]} 25. h4 {[%clk 0:01:06]}  Bd6 {[%clk 0:00:59]} 26. Qe2 {[%clk 0:00:57]}  Bg6 {[%clk 0:00:55]} 27. Bb1 {[%clk 0:00:16]}  Raf8 {[%clk 0:00:44]} 28. f3 {[%clk 0:00:16]}  Rxd4 {[%clk 0:00:40]} 29. Nxd4 {[%clk 0:00:12]}  Qxd4 {[%clk 0:00:41]} 30. Rhe1 {[%clk 0:00:11]}  Bxb1 {[%clk 0:00:42]} 31. Rxb1 {[%clk 0:00:11]}  Ng6 {[%clk 0:00:43]} 32. Rbd1 {[%clk 0:00:06]}  Qf4+ {[%clk 0:00:39]} 33. Kg2 {[%clk 0:00:04]}  Nxh4+ {[%clk 0:00:35]} 34. Kg1 {[%clk 0:00:03]}  Qg3+ {[%clk 0:00:34]} 35. Kh1 {[%clk 0:00:02]}  Bxe5 {[%clk 0:00:34]} 36. Qxe5 {[%clk 0:00:03]}  Qxf3+ {[%clk 0:00:34]} 37. Kh2 {[%clk 0:00:03]}  Qg2# {[%clk 0:00:35]} 0-1


[Site "https://www.chess.com"]